{"text_format":"3","workbook":"xlsx","n_sheets":4,"sheets":["Start","Monatlicher Budgetbericht","Monatliche Ausgaben","Zusätzliche Daten"],"not_rendered":{"charts":1,"defined_names":4,"pivot_tables":2},"read":"whole","date_system":"1900"}

{"sheet":"Start","index":0,"n_rows":8,"n_cols":2,"rows_kept":8}
[null,"ÜBER DIESE VORLAGE"]
[null,"Verwenden Sie diese Arbeitsmappe zum Nachverfolgen Ihrer Ausgaben und zum Erstellen eines Familienbudgets."]
[null,"Geben Sie die erwarteten und tatsächlichen Einkünfte aus unterschiedlichen Quellen in das Arbeitsblatt „Monatlicher Budgetbericht“ und die erwarteten und tatsächlichen Ausgaben in verschiedenen Kategorien in das Arbeitsblatt „Monatliche Ausgaben“ ein."]
[null,"Der erwarteter und tatsächlicher Saldo sowie die Differenz werden automatisch berechnet, und das Diagramm „Budgetzusammenfassung“ und „Budgetübersicht“ werden im Arbeitsblatt „Monatlicher Budgetbericht“ aktualisiert."]
[null,"Sie können eine neue Kategorie in der Tabelle im Arbeitsblatt „Zusätzliche Daten“ eingeben oder eine Kategorie ändern."]
[null,"Anmerkung: "]
[null,"Weitere Anweisungen wurden in Spalte A im Arbeitsblatt MONATLICHER BUDGETBERICHT und in Zelle A1 in den Arbeitsblättern MONATLICHE AUSGABEN und ZUSÄTZLICHE DATEN bereitgestellt. Diese Texte wurden absichtlich ausgeblendet. Um Texte zu entfernen, wählen Sie Spalte A oder Zelle A1 und dann ENTF aus. Um die Texte einzublenden, wählen Sie Spalte A oder Zeile A1 aus, und ändern Sie die Schriftfarbe."]
[null,"Wenn Sie mehr zu Tabellen erfahren möchten, drücken Sie die UMSCHALTTASTE und dann innerhalb einer Tabelle F10, wählen Sie die Option \"TABELLE\" und dann \"ALTERNATIVTEXT\" aus. Bei PivotTables drücken Sie die UMSCHALTTASTE und dann innerhalb einer Tabelle F10, wählen Sie die Option \"PIVOTTABLE-OPTIONEN\" und dann die Registerkarte \"ALTERNATIVTEXT\" aus."]

{"sheet":"Monatlicher Budgetbericht","index":1,"n_rows":34,"n_cols":14,"rows_kept":34,"merged":[[0,1,0,4],[0,5,0,7],[0,12,0,13],[1,9,5,13],[2,2,2,5],[3,2,3,5],[4,2,4,5],[7,1,10,1],[7,5,10,5],[7,6,10,6],[8,9,31,9],[12,1,16,1],[12,5,16,5],[12,6,16,6],[19,1,34,6]]}
["Erstellen Sie auf diesem Arbeitsblatt einen Monatlicher Budgetbericht. Der Titel dieses Arbeitsblatts befindet sich in der Zelle rechts, und der Untertitel ist in Zelle J1. Wählen Sie die Zelle F1 aus, um zum Arbeitsblatt „Monatliche Ausgaben“ zu navigieren. Weitere hilfreiche Anweisungen zur Verwendung dieses Arbeitsblatts stehen in Zellen in dieser Spalte.","Budgetübersicht",{"$nulls":3},"Monatliche Ausgaben",{"$nulls":3},"Budgetzusammenfassung",null,null,"Der einzelne Weizenhalm in grüner Farbe befindet sich in dieser Zelle."]
["Die Bezeichnung „Saldo“ befindet sich in der Zelle rechts. PivotTable-Datenschnitte zum Filtern von Tabellendaten befinden sich in den Zellen J2 bis N6. Halten Sie zum Auswählen mehrerer Kategorien beim Klicken die STRG-TASTE gedrückt.","Saldo",{"$nulls":7},"Der Datenschnitt „Kategorie“ zum Filtern der folgenden PivotTable nach der ausgewählten Kategorie befindet sich in dieser Zelle."]
["Die Bezeichnung „Erwarteter Saldo“ befindet sich in der Zelle rechts. Der Erwarteter Saldo wird in Zelle G3 automatisch berechnet.","Erwarteter Saldo","(Erwartet abzüglich Ausgaben)",{"$nulls":3},{"$f":"D17-SUM(Budgetdetails[Erwartete Kosten])","v":{"v":1585,"d":"1,585 €"}}]
["Die Bezeichnung „Tatsächlicher Saldo“ befindet sich in der Zelle rechts. Der Tatsächlicher Saldo  wird in Zelle G4 automatisch berechnet.","Tatsächlicher Saldo ","(Tatsächlich abzüglich Ausgaben)",{"$nulls":3},{"$f":"D11-SUM(Budgetdetails[Tatsächliche Kosten])","v":{"v":1740,"d":"1,740 €"}}]
["Die Bezeichnung „Differenz“ befindet sich in der Zelle rechts. Die Differenz wird in Zelle G5 automatisch berechnet. Die nächste Anweisung finden Sie in Zelle A7.","Differenz","(Tatsächlich abzüglich erwartet)",{"$nulls":3},{"$f":"G4-G3","v":{"v":155,"d":"155 €"}}]
[]
["Die Bezeichnung „Einkünfte“ befindet sich in der Zelle rechts, die Bezeichnung „Ausgaben“ befindet sich in der Zelle F7 und der Tipp für die Budgetzusammenfassung befindet sich in Zelle J7.","Einkünfte",{"$nulls":3},"Ausgaben",{"$nulls":3},"Wählen Sie die folgende PivotTable aus, und wählen Sie dann auf der Registerkarte „Analysieren“ die Option Aktualisieren aus."]
["Die Bezeichnung „Tatsächliche Einkünfte“ befindet sich in der Zelle rechts, die Bezeichnung „Tatsächliche Kosten“ in Zelle F8. Geben Sie in Zelle D8 „Einkünfte 1“ ein. Die tatsächlichen Ausgaben werden in Zelle G8 automatisch berechnet.","TATSÄCHLICH","Einkünfte 1",{"v":5800,"d":"5,800 €"},null,"TATSÄCHLICH",{"$f":"SUM(Budgetdetails[Tatsächliche Kosten])","v":{"v":7860,"d":"7,860 €"}}]
["Geben Sie in Zelle D9 „Einkünfte 2“ ein. Das Bild befindet sich in Zelle J9. Die PivotTable beginnt in Zelle K9. Wenn Sie die PivotTable aktualisieren möchten, wählen Sie auf der Registerkarte „Analysieren“, die Option zum Aktualisieren aus.",null,"Einkünfte 2",{"v":2300,"d":"2,300 €"},{"$nulls":5},"Das Bild befindet sich in dieser Zelle.","Kategorie","Erwartete Kosten ","Tatsächliche Kosten ","Differenz "]
["Geben Sie Zusatzeinkünfte in Zelle D10 ein.",null,"Zusatzeinkünfte",{"v":1500,"d":"1,500 €"},{"$nulls":6},"Kinder",{"v":140,"d":"140 €"},{"v":140,"d":"140 €"},{"v":0,"d":"0 €"}]
["Die Bezeichnung „Einkünfte gesamt“ befindet sich in Zelle C11, und die Einkünfte gesamt werden in Zelle D11 automatisch berechnet. Die nächste Anweisung finden Sie in Zelle A13.",null,"Einkünfte gesamt",{"$f":"SUM(D8:D10)","v":{"v":9600,"d":"9,600 €"}}]
[{"$nulls":10},"Unterhaltung",{"v":400,"d":"400 €"},{"v":358,"d":"358 €"},{"v":42,"d":"42 €"}]
["Die Bezeichnung „Erwartete Einkünfte“ befindet sich in der Zelle rechts, die Bezeichnung „Erwartete Ausgaben“ in Zelle F13. Die erwarteten Ausgaben werden in Zelle G13 automatisch berechnet.","ERWARTET",{"$nulls":3},"ERWARTET",{"$f":"SUM(Budgetdetails[Erwartete Kosten])","v":{"v":7915,"d":"7,915 €"}}]
["Geben Sie die erwarteten Einkünfte 1 in die Zelle D14 ein.",null,"Einkünfte 1",{"v":6000,"d":"6,000 €"},{"$nulls":6},"Essen",{"v":1100,"d":"1,100 €"},{"v":1320,"d":"1,320 €"},{"v":-220,"d":"-220 €"}]
["Geben Sie die erwarteten Einkünfte 2 in die Zelle D15 ein.",null,"Einkünfte 2",{"v":1000,"d":"1,000 €"}]
["Geben Sie Zusatzeinkünfte in Zelle D16 ein.",null,"Zusatzeinkünfte",{"v":2500,"d":"2,500 €"},{"$nulls":6},"Geschenke und Spenden",{"v":100,"d":"100 €"},{"v":125,"d":"125 €"},{"v":-25,"d":"-25 €"}]
["Die Bezeichnung „Einkünfte gesamt“ befindet sich in Zelle C17, und die Einkünfte gesamt werden in Zelle D17 automatisch berechnet. Die nächste Anweisung finden Sie in Zelle A20.",null,"Einkünfte gesamt",{"$f":"SUM(D14:D16)","v":{"v":9500,"d":"9,500 €"}}]
[{"$nulls":10},"Wohnen",{"v":2830,"d":"2,830 €"},{"v":2702,"d":"2,702 €"},{"v":128,"d":"128 €"}]
[]
["Das Kreisdiagramm, in dem der Prozentsatz von Ausgaben nach Kategorie angezeigt wird, befindet sich in der Zelle rechts.","Das Kreisdiagramm, in dem der Prozentsatz von Ausgaben nach Kategorie angezeigt wird, befindet sich in dieser Zelle.",{"$nulls":8},"Versicherungen",{"v":900,"d":"900 €"},{"v":900,"d":"900 €"},{"v":0,"d":"0 €"}]
[]
[{"$nulls":10},"Kredite",{"v":200,"d":"200 €"},{"v":200,"d":"200 €"},{"v":0,"d":"0 €"}]
[]
[{"$nulls":10},"Körperpflege",{"v":150,"d":"150 €"},{"v":140,"d":"140 €"},{"v":10,"d":"10 €"}]
[]
[{"$nulls":10},"Haustiere",{"v":170,"d":"170 €"},{"v":100,"d":"100 €"},{"v":70,"d":"70 €"}]
[]
[{"$nulls":10},"Spareinlagen oder Investitionen",{"v":200,"d":"200 €"},{"v":200,"d":"200 €"},{"v":0,"d":"0 €"}]
[]
[{"$nulls":10},"Steuern",{"v":300,"d":"300 €"},{"v":300,"d":"300 €"},{"v":0,"d":"0 €"}]
[]
[{"$nulls":10},"Beförderung",{"v":1425,"d":"1,425 €"},{"v":1375,"d":"1,375 €"},{"v":50,"d":"50 €"}]
[]
[{"$nulls":10},"Gesamtergebnis",{"v":7915,"d":"7,915 €"},{"v":7860,"d":"7,860 €"},{"v":55,"d":"55 €"}]

{"sheet":"Monatliche Ausgaben","index":2,"n_rows":62,"n_cols":7,"rows_kept":62,"merged":[[0,1,0,4],[0,5,0,6]]}
["Berechnen Sie in diesem Arbeitsblatt die Monatliche Ausgaben. Der Titel dieses Arbeitsblatts steht in der Zelle rechts. Wählen Sie die Zelle F1 aus, um zum Arbeitsblatt „Monatlicher Budgetbericht“ zu navigieren.","Monatliche Ausgaben",{"$nulls":3},"Monatlicher Budgetbericht"]
[" Geben Sie Daten in die Tabelle „Budgetdetails“ ein, die in der Zelle rechts beginnt.","Beschreibung","Kategorie","Erwartete Kosten","Tatsächliche Kosten","Differenz","Übersicht über die tatsächlichen Kosten"]
[null,"Außerhalb des Lehrplans stattfindende Aktivitäten","Kinder",{"v":40,"d":"40 €"},{"v":40,"d":"40 €"},{"$f":"Budgetdetails[[#This Row],[Erwartete Kosten]]-Budgetdetails[[#This Row],[Tatsächliche Kosten]]","v":{"v":0,"d":"0 €"}},{"$f":"Budgetdetails[[#This Row],[Tatsächliche Kosten]]","v":{"v":40,"d":"40 €"}}]
[null,"Arztkosten","Kinder",null,null,{"$f":"Budgetdetails[[#This Row],[Erwartete Kosten]]-Budgetdetails[[#This Row],[Tatsächliche Kosten]]","v":{"v":0,"d":"0 €"}},{"$f":"Budgetdetails[[#This Row],[Tatsächliche Kosten]]","v":{"v":0,"d":"0 €"}}]
[null,"Schulmaterialien","Kinder",null,null,{"$f":"Budgetdetails[[#This Row],[Erwartete Kosten]]-Budgetdetails[[#This Row],[Tatsächliche Kosten]]","v":{"v":0,"d":"0 €"}},{"$f":"Budgetdetails[[#This Row],[Tatsächliche Kosten]]","v":{"v":0,"d":"0 €"}}]
[null,"Unterrichtsgebühren","Kinder",{"v":100,"d":"100 €"},{"v":100,"d":"100 €"},{"$f":"Budgetdetails[[#This Row],[Erwartete Kosten]]-Budgetdetails[[#This Row],[Tatsächliche Kosten]]","v":{"v":0,"d":"0 €"}},{"$f":"Budgetdetails[[#This Row],[Tatsächliche Kosten]]","v":{"v":100,"d":"100 €"}}]
[null,"Konzerte","Unterhaltung",{"v":50,"d":"50 €"},{"v":40,"d":"40 €"},{"$f":"Budgetdetails[[#This Row],[Erwartete Kosten]]-Budgetdetails[[#This Row],[Tatsächliche Kosten]]","v":{"v":10,"d":"10 €"}},{"$f":"Budgetdetails[[#This Row],[Tatsächliche Kosten]]","v":{"v":40,"d":"40 €"}}]
[null,"Theater","Unterhaltung",{"v":200,"d":"200 €"},{"v":150,"d":"150 €"},{"$f":"Budgetdetails[[#This Row],[Erwartete Kosten]]-Budgetdetails[[#This Row],[Tatsächliche Kosten]]","v":{"v":50,"d":"50 €"}},{"$f":"Budgetdetails[[#This Row],[Tatsächliche Kosten]]","v":{"v":150,"d":"150 €"}}]
[null,"Filme","Unterhaltung",{"v":50,"d":"50 €"},{"v":28,"d":"28 €"},{"$f":"Budgetdetails[[#This Row],[Erwartete Kosten]]-Budgetdetails[[#This Row],[Tatsächliche Kosten]]","v":{"v":22,"d":"22 €"}},{"$f":"Budgetdetails[[#This Row],[Tatsächliche Kosten]]","v":{"v":28,"d":"28 €"}}]
[null,"Musik (CDs, Downloads usw.)","Unterhaltung",{"v":50,"d":"50 €"},{"v":30,"d":"30 €"},{"$f":"Budgetdetails[[#This Row],[Erwartete Kosten]]-Budgetdetails[[#This Row],[Tatsächliche Kosten]]","v":{"v":20,"d":"20 €"}},{"$f":"Budgetdetails[[#This Row],[Tatsächliche Kosten]]","v":{"v":30,"d":"30 €"}}]
[null,"Sportveranstaltungen","Unterhaltung",{"v":0,"d":"0 €"},{"v":40,"d":"40 €"},{"$f":"Budgetdetails[[#This Row],[Erwartete Kosten]]-Budgetdetails[[#This Row],[Tatsächliche Kosten]]","v":{"v":-40,"d":"-40 €"}},{"$f":"Budgetdetails[[#This Row],[Tatsächliche Kosten]]","v":{"v":40,"d":"40 €"}}]
[null,"Video/DVD (Kauf)","Unterhaltung",{"v":20,"d":"20 €"},{"v":50,"d":"50 €"},{"$f":"Budgetdetails[[#This Row],[Erwartete Kosten]]-Budgetdetails[[#This Row],[Tatsächliche Kosten]]","v":{"v":-30,"d":"-30 €"}},{"$f":"Budgetdetails[[#This Row],[Tatsächliche Kosten]]","v":{"v":50,"d":"50 €"}}]
[null,"Video/DVD (Ausleihe)","Unterhaltung",{"v":30,"d":"30 €"},{"v":20,"d":"20 €"},{"$f":"Budgetdetails[[#This Row],[Erwartete Kosten]]-Budgetdetails[[#This Row],[Tatsächliche Kosten]]","v":{"v":10,"d":"10 €"}},{"$f":"Budgetdetails[[#This Row],[Tatsächliche Kosten]]","v":{"v":20,"d":"20 €"}}]
[null,"Ausgehen","Essen",{"v":1000,"d":"1,000 €"},{"v":1200,"d":"1,200 €"},{"$f":"Budgetdetails[[#This Row],[Erwartete Kosten]]-Budgetdetails[[#This Row],[Tatsächliche Kosten]]","v":{"v":-200,"d":"-200 €"}},{"$f":"Budgetdetails[[#This Row],[Tatsächliche Kosten]]","v":{"v":1200,"d":"1,200 €"}}]
[null,"Lebensmittel","Essen",{"v":100,"d":"100 €"},{"v":120,"d":"120 €"},{"$f":"Budgetdetails[[#This Row],[Erwartete Kosten]]-Budgetdetails[[#This Row],[Tatsächliche Kosten]]","v":{"v":-20,"d":"-20 €"}},{"$f":"Budgetdetails[[#This Row],[Tatsächliche Kosten]]","v":{"v":120,"d":"120 €"}}]
[null,"Spenden 1","Geschenke und Spenden",{"v":75,"d":"75 €"},{"v":100,"d":"100 €"},{"$f":"Budgetdetails[[#This Row],[Erwartete Kosten]]-Budgetdetails[[#This Row],[Tatsächliche Kosten]]","v":{"v":-25,"d":"-25 €"}},{"$f":"Budgetdetails[[#This Row],[Tatsächliche Kosten]]","v":{"v":100,"d":"100 €"}}]
[null,"Spenden 2","Geschenke und Spenden",{"v":25,"d":"25 €"},{"v":25,"d":"25 €"},{"$f":"Budgetdetails[[#This Row],[Erwartete Kosten]]-Budgetdetails[[#This Row],[Tatsächliche Kosten]]","v":{"v":0,"d":"0 €"}},{"$f":"Budgetdetails[[#This Row],[Tatsächliche Kosten]]","v":{"v":25,"d":"25 €"}}]
[null,"Geschenk 1","Geschenke und Spenden",null,null,{"$f":"Budgetdetails[[#This Row],[Erwartete Kosten]]-Budgetdetails[[#This Row],[Tatsächliche Kosten]]","v":{"v":0,"d":"0 €"}},{"$f":"Budgetdetails[[#This Row],[Tatsächliche Kosten]]","v":{"v":0,"d":"0 €"}}]
[null,"Geschenk 2","Geschenke und Spenden",null,null,{"$f":"Budgetdetails[[#This Row],[Erwartete Kosten]]-Budgetdetails[[#This Row],[Tatsächliche Kosten]]","v":{"v":0,"d":"0 €"}},{"$f":"Budgetdetails[[#This Row],[Tatsächliche Kosten]]","v":{"v":0,"d":"0 €"}}]
[null,"Kabel/Satellit","Wohnen",{"v":100,"d":"100 €"},{"v":100,"d":"100 €"},{"$f":"Budgetdetails[[#This Row],[Erwartete Kosten]]-Budgetdetails[[#This Row],[Tatsächliche Kosten]]","v":{"v":0,"d":"0 €"}},{"$f":"Budgetdetails[[#This Row],[Tatsächliche Kosten]]","v":{"v":100,"d":"100 €"}}]
[null,"Strom","Wohnen",{"v":45,"d":"45 €"},{"v":50,"d":"50 €"},{"$f":"Budgetdetails[[#This Row],[Erwartete Kosten]]-Budgetdetails[[#This Row],[Tatsächliche Kosten]]","v":{"v":-5,"d":"-5 €"}},{"$f":"Budgetdetails[[#This Row],[Tatsächliche Kosten]]","v":{"v":50,"d":"50 €"}}]
[null,"Gas","Wohnen",{"v":300,"d":"300 €"},{"v":400,"d":"400 €"},{"$f":"Budgetdetails[[#This Row],[Erwartete Kosten]]-Budgetdetails[[#This Row],[Tatsächliche Kosten]]","v":{"v":-100,"d":"-100 €"}},{"$f":"Budgetdetails[[#This Row],[Tatsächliche Kosten]]","v":{"v":400,"d":"400 €"}}]
[null,"Reinigungsdienste","Wohnen",{"v":200,"d":"200 €"},null,{"$f":"Budgetdetails[[#This Row],[Erwartete Kosten]]-Budgetdetails[[#This Row],[Tatsächliche Kosten]]","v":{"v":200,"d":"200 €"}},{"$f":"Budgetdetails[[#This Row],[Tatsächliche Kosten]]","v":{"v":0,"d":"0 €"}}]
[null,"Wartung","Wohnen",{"v":200,"d":"200 €"},{"v":150,"d":"150 €"},{"$f":"Budgetdetails[[#This Row],[Erwartete Kosten]]-Budgetdetails[[#This Row],[Tatsächliche Kosten]]","v":{"v":50,"d":"50 €"}},{"$f":"Budgetdetails[[#This Row],[Tatsächliche Kosten]]","v":{"v":150,"d":"150 €"}}]
[null,"Hypothek oder Miete","Wohnen",{"v":1700,"d":"1,700 €"},{"v":1700,"d":"1,700 €"},{"$f":"Budgetdetails[[#This Row],[Erwartete Kosten]]-Budgetdetails[[#This Row],[Tatsächliche Kosten]]","v":{"v":0,"d":"0 €"}},{"$f":"Budgetdetails[[#This Row],[Tatsächliche Kosten]]","v":{"v":1700,"d":"1,700 €"}}]
[null,"Erdgas/Öl","Wohnen",null,null,{"$f":"Budgetdetails[[#This Row],[Erwartete Kosten]]-Budgetdetails[[#This Row],[Tatsächliche Kosten]]","v":{"v":0,"d":"0 €"}},{"$f":"Budgetdetails[[#This Row],[Tatsächliche Kosten]]","v":{"v":0,"d":"0 €"}}]
[null,"Online-/Internetdienst","Wohnen",{"v":100,"d":"100 €"},{"v":100,"d":"100 €"},{"$f":"Budgetdetails[[#This Row],[Erwartete Kosten]]-Budgetdetails[[#This Row],[Tatsächliche Kosten]]","v":{"v":0,"d":"0 €"}},{"$f":"Budgetdetails[[#This Row],[Tatsächliche Kosten]]","v":{"v":100,"d":"100 €"}}]
[null,"Telefon (Mobiltelefon)","Wohnen",{"v":60,"d":"60 €"},{"v":60,"d":"60 €"},{"$f":"Budgetdetails[[#This Row],[Erwartete Kosten]]-Budgetdetails[[#This Row],[Tatsächliche Kosten]]","v":{"v":0,"d":"0 €"}},{"$f":"Budgetdetails[[#This Row],[Tatsächliche Kosten]]","v":{"v":60,"d":"60 €"}}]
[null,"Telefon (privat)","Wohnen",{"v":35,"d":"35 €"},{"v":39,"d":"39 €"},{"$f":"Budgetdetails[[#This Row],[Erwartete Kosten]]-Budgetdetails[[#This Row],[Tatsächliche Kosten]]","v":{"v":-4,"d":"-4 €"}},{"$f":"Budgetdetails[[#This Row],[Tatsächliche Kosten]]","v":{"v":39,"d":"39 €"}}]
[null,"Betriebsmittel","Wohnen",{"v":40,"d":"40 €"},{"v":55,"d":"55 €"},{"$f":"Budgetdetails[[#This Row],[Erwartete Kosten]]-Budgetdetails[[#This Row],[Tatsächliche Kosten]]","v":{"v":-15,"d":"-15 €"}},{"$f":"Budgetdetails[[#This Row],[Tatsächliche Kosten]]","v":{"v":55,"d":"55 €"}}]
[null,"Müllabfuhr und Recycling","Wohnen",{"v":25,"d":"25 €"},{"v":22,"d":"22 €"},{"$f":"Budgetdetails[[#This Row],[Erwartete Kosten]]-Budgetdetails[[#This Row],[Tatsächliche Kosten]]","v":{"v":3,"d":"3 €"}},{"$f":"Budgetdetails[[#This Row],[Tatsächliche Kosten]]","v":{"v":22,"d":"22 €"}}]
[null,"Wasser und Abwasser","Wohnen",{"v":25,"d":"25 €"},{"v":26,"d":"26 €"},{"$f":"Budgetdetails[[#This Row],[Erwartete Kosten]]-Budgetdetails[[#This Row],[Tatsächliche Kosten]]","v":{"v":-1,"d":"-1 €"}},{"$f":"Budgetdetails[[#This Row],[Tatsächliche Kosten]]","v":{"v":26,"d":"26 €"}}]
[null,"Gesundheit","Versicherungen",{"v":400,"d":"400 €"},{"v":400,"d":"400 €"},{"$f":"Budgetdetails[[#This Row],[Erwartete Kosten]]-Budgetdetails[[#This Row],[Tatsächliche Kosten]]","v":{"v":0,"d":"0 €"}},{"$f":"Budgetdetails[[#This Row],[Tatsächliche Kosten]]","v":{"v":400,"d":"400 €"}}]
[null,"Haus","Versicherungen",{"v":400,"d":"400 €"},{"v":400,"d":"400 €"},{"$f":"Budgetdetails[[#This Row],[Erwartete Kosten]]-Budgetdetails[[#This Row],[Tatsächliche Kosten]]","v":{"v":0,"d":"0 €"}},{"$f":"Budgetdetails[[#This Row],[Tatsächliche Kosten]]","v":{"v":400,"d":"400 €"}}]
[null,"Lebensversicherung","Versicherungen",{"v":100,"d":"100 €"},{"v":100,"d":"100 €"},{"$f":"Budgetdetails[[#This Row],[Erwartete Kosten]]-Budgetdetails[[#This Row],[Tatsächliche Kosten]]","v":{"v":0,"d":"0 €"}},{"$f":"Budgetdetails[[#This Row],[Tatsächliche Kosten]]","v":{"v":100,"d":"100 €"}}]
[null,"Kreditkarte 1","Kredite",{"v":200,"d":"200 €"},{"v":200,"d":"200 €"},{"$f":"Budgetdetails[[#This Row],[Erwartete Kosten]]-Budgetdetails[[#This Row],[Tatsächliche Kosten]]","v":{"v":0,"d":"0 €"}},{"$f":"Budgetdetails[[#This Row],[Tatsächliche Kosten]]","v":{"v":200,"d":"200 €"}}]
[null,"Kreditkarte 2","Kredite",null,null,{"$f":"Budgetdetails[[#This Row],[Erwartete Kosten]]-Budgetdetails[[#This Row],[Tatsächliche Kosten]]","v":{"v":0,"d":"0 €"}},{"$f":"Budgetdetails[[#This Row],[Tatsächliche Kosten]]","v":{"v":0,"d":"0 €"}}]
[null,"Kreditkarte 3","Kredite",null,null,{"$f":"Budgetdetails[[#This Row],[Erwartete Kosten]]-Budgetdetails[[#This Row],[Tatsächliche Kosten]]","v":{"v":0,"d":"0 €"}},{"$f":"Budgetdetails[[#This Row],[Tatsächliche Kosten]]","v":{"v":0,"d":"0 €"}}]
[null,"Privat","Kredite",null,null,{"$f":"Budgetdetails[[#This Row],[Erwartete Kosten]]-Budgetdetails[[#This Row],[Tatsächliche Kosten]]","v":{"v":0,"d":"0 €"}},{"$f":"Budgetdetails[[#This Row],[Tatsächliche Kosten]]","v":{"v":0,"d":"0 €"}}]
[null,"Studium","Kredite",null,null,{"$f":"Budgetdetails[[#This Row],[Erwartete Kosten]]-Budgetdetails[[#This Row],[Tatsächliche Kosten]]","v":{"v":0,"d":"0 €"}},{"$f":"Budgetdetails[[#This Row],[Tatsächliche Kosten]]","v":{"v":0,"d":"0 €"}}]
[null,"Kleidung","Körperpflege",{"v":150,"d":"150 €"},{"v":140,"d":"140 €"},{"$f":"Budgetdetails[[#This Row],[Erwartete Kosten]]-Budgetdetails[[#This Row],[Tatsächliche Kosten]]","v":{"v":10,"d":"10 €"}},{"$f":"Budgetdetails[[#This Row],[Tatsächliche Kosten]]","v":{"v":140,"d":"140 €"}}]
[null,"Chemische Reinigung","Körperpflege",null,null,{"$f":"Budgetdetails[[#This Row],[Erwartete Kosten]]-Budgetdetails[[#This Row],[Tatsächliche Kosten]]","v":{"v":0,"d":"0 €"}},{"$f":"Budgetdetails[[#This Row],[Tatsächliche Kosten]]","v":{"v":0,"d":"0 €"}}]
[null,"Haare/Nägel","Körperpflege",null,null,{"$f":"Budgetdetails[[#This Row],[Erwartete Kosten]]-Budgetdetails[[#This Row],[Tatsächliche Kosten]]","v":{"v":0,"d":"0 €"}},{"$f":"Budgetdetails[[#This Row],[Tatsächliche Kosten]]","v":{"v":0,"d":"0 €"}}]
[null,"Fitnesscenter","Körperpflege",null,null,{"$f":"Budgetdetails[[#This Row],[Erwartete Kosten]]-Budgetdetails[[#This Row],[Tatsächliche Kosten]]","v":{"v":0,"d":"0 €"}},{"$f":"Budgetdetails[[#This Row],[Tatsächliche Kosten]]","v":{"v":0,"d":"0 €"}}]
[null,"Arztkosten","Körperpflege",null,null,{"$f":"Budgetdetails[[#This Row],[Erwartete Kosten]]-Budgetdetails[[#This Row],[Tatsächliche Kosten]]","v":{"v":0,"d":"0 €"}},{"$f":"Budgetdetails[[#This Row],[Tatsächliche Kosten]]","v":{"v":0,"d":"0 €"}}]
[null,"Essen","Haustiere",{"v":150,"d":"150 €"},{"v":75,"d":"75 €"},{"$f":"Budgetdetails[[#This Row],[Erwartete Kosten]]-Budgetdetails[[#This Row],[Tatsächliche Kosten]]","v":{"v":75,"d":"75 €"}},{"$f":"Budgetdetails[[#This Row],[Tatsächliche Kosten]]","v":{"v":75,"d":"75 €"}}]
[null,"Körperpflege","Haustiere",{"v":20,"d":"20 €"},{"v":25,"d":"25 €"},{"$f":"Budgetdetails[[#This Row],[Erwartete Kosten]]-Budgetdetails[[#This Row],[Tatsächliche Kosten]]","v":{"v":-5,"d":"-5 €"}},{"$f":"Budgetdetails[[#This Row],[Tatsächliche Kosten]]","v":{"v":25,"d":"25 €"}}]
[null,"Arztkosten","Haustiere",null,null,{"$f":"Budgetdetails[[#This Row],[Erwartete Kosten]]-Budgetdetails[[#This Row],[Tatsächliche Kosten]]","v":{"v":0,"d":"0 €"}},{"$f":"Budgetdetails[[#This Row],[Tatsächliche Kosten]]","v":{"v":0,"d":"0 €"}}]
[null,"Spielzeuge","Haustiere",null,null,{"$f":"Budgetdetails[[#This Row],[Erwartete Kosten]]-Budgetdetails[[#This Row],[Tatsächliche Kosten]]","v":{"v":0,"d":"0 €"}},{"$f":"Budgetdetails[[#This Row],[Tatsächliche Kosten]]","v":{"v":0,"d":"0 €"}}]
[null,"Anlagekonto","Spareinlagen oder Investitionen",{"v":200,"d":"200 €"},{"v":200,"d":"200 €"},{"$f":"Budgetdetails[[#This Row],[Erwartete Kosten]]-Budgetdetails[[#This Row],[Tatsächliche Kosten]]","v":{"v":0,"d":"0 €"}},{"$f":"Budgetdetails[[#This Row],[Tatsächliche Kosten]]","v":{"v":200,"d":"200 €"}}]
[null,"Altersvorsorgekonto","Spareinlagen oder Investitionen",null,null,{"$f":"Budgetdetails[[#This Row],[Erwartete Kosten]]-Budgetdetails[[#This Row],[Tatsächliche Kosten]]","v":{"v":0,"d":"0 €"}},{"$f":"Budgetdetails[[#This Row],[Tatsächliche Kosten]]","v":{"v":0,"d":"0 €"}}]
[null,"EkSt","Steuern",{"v":300,"d":"300 €"},{"v":300,"d":"300 €"},{"$f":"Budgetdetails[[#This Row],[Erwartete Kosten]]-Budgetdetails[[#This Row],[Tatsächliche Kosten]]","v":{"v":0,"d":"0 €"}},{"$f":"Budgetdetails[[#This Row],[Tatsächliche Kosten]]","v":{"v":300,"d":"300 €"}}]
[null,"Kommunalsteuern","Steuern",null,null,{"$f":"Budgetdetails[[#This Row],[Erwartete Kosten]]-Budgetdetails[[#This Row],[Tatsächliche Kosten]]","v":{"v":0,"d":"0 €"}},{"$f":"Budgetdetails[[#This Row],[Tatsächliche Kosten]]","v":{"v":0,"d":"0 €"}}]
[null,"USt","Steuern",null,null,{"$f":"Budgetdetails[[#This Row],[Erwartete Kosten]]-Budgetdetails[[#This Row],[Tatsächliche Kosten]]","v":{"v":0,"d":"0 €"}},{"$f":"Budgetdetails[[#This Row],[Tatsächliche Kosten]]","v":{"v":0,"d":"0 €"}}]
[null,"Bus-/Taxikosten","Beförderung",{"v":100,"d":"100 €"},{"v":150,"d":"150 €"},{"$f":"Budgetdetails[[#This Row],[Erwartete Kosten]]-Budgetdetails[[#This Row],[Tatsächliche Kosten]]","v":{"v":-50,"d":"-50 €"}},{"$f":"Budgetdetails[[#This Row],[Tatsächliche Kosten]]","v":{"v":150,"d":"150 €"}}]
[null,"Kraftstoff","Beförderung",{"v":450,"d":"450 €"},{"v":400,"d":"400 €"},{"$f":"Budgetdetails[[#This Row],[Erwartete Kosten]]-Budgetdetails[[#This Row],[Tatsächliche Kosten]]","v":{"v":50,"d":"50 €"}},{"$f":"Budgetdetails[[#This Row],[Tatsächliche Kosten]]","v":{"v":400,"d":"400 €"}}]
[null,"Versicherungen","Beförderung",{"v":300,"d":"300 €"},{"v":300,"d":"300 €"},{"$f":"Budgetdetails[[#This Row],[Erwartete Kosten]]-Budgetdetails[[#This Row],[Tatsächliche Kosten]]","v":{"v":0,"d":"0 €"}},{"$f":"Budgetdetails[[#This Row],[Tatsächliche Kosten]]","v":{"v":300,"d":"300 €"}}]
[null,"Kfz-Steuer ","Beförderung",{"v":25,"d":"25 €"},{"v":25,"d":"25 €"},{"$f":"Budgetdetails[[#This Row],[Erwartete Kosten]]-Budgetdetails[[#This Row],[Tatsächliche Kosten]]","v":{"v":0,"d":"0 €"}},{"$f":"Budgetdetails[[#This Row],[Tatsächliche Kosten]]","v":{"v":25,"d":"25 €"}}]
[null,"Wartung","Beförderung",{"v":100,"d":"100 €"},{"v":50,"d":"50 €"},{"$f":"Budgetdetails[[#This Row],[Erwartete Kosten]]-Budgetdetails[[#This Row],[Tatsächliche Kosten]]","v":{"v":50,"d":"50 €"}},{"$f":"Budgetdetails[[#This Row],[Tatsächliche Kosten]]","v":{"v":50,"d":"50 €"}}]
[null,"Parkgebühren","Beförderung",null,null,{"$f":"Budgetdetails[[#This Row],[Erwartete Kosten]]-Budgetdetails[[#This Row],[Tatsächliche Kosten]]","v":{"v":0,"d":"0 €"}},{"$f":"Budgetdetails[[#This Row],[Tatsächliche Kosten]]","v":{"v":0,"d":"0 €"}}]
[null,"Kfz-Kosten","Beförderung",{"v":450,"d":"450 €"},{"v":450,"d":"450 €"},{"$f":"Budgetdetails[[#This Row],[Erwartete Kosten]]-Budgetdetails[[#This Row],[Tatsächliche Kosten]]","v":{"v":0,"d":"0 €"}},{"$f":"Budgetdetails[[#This Row],[Tatsächliche Kosten]]","v":{"v":450,"d":"450 €"}}]
[null,"Ergebnis",null,{"$f":"SUBTOTAL(109,Budgetdetails[Erwartete Kosten])","v":{"v":7915,"d":"7,915 €"}},{"$f":"SUBTOTAL(109,Budgetdetails[Tatsächliche Kosten])","v":{"v":7860,"d":"7,860 €"}},{"$f":"SUBTOTAL(109,Budgetdetails[Differenz])","v":{"v":55,"d":"55 €"}}]

{"sheet":"Zusätzliche Daten","index":3,"n_rows":15,"n_cols":5,"rows_kept":15}
["Verwenden Sie dieses Arbeitsblatt, um die Dropdownliste der Spalte „Kategorie“ in der Tabelle „Budgetdetails im Arbeitsblatt „Monatliche Ausgaben“ zu ändern. Geben Sie hierfür eine neue Kategorie in der Nachschlagen der Budgetkategorie beginnend in Zelle E2 ein, oder ändern Sie eine Kategorie. Die mit dem Diagramm „Budgetübersicht“ verknüpfte PivotTable im Arbeitsblatt „Monatlicher Budgetbericht“ beginnt in Zelle B2.","Diagramm über die PivotTable für die Budgetübersicht",null,null,"Nachschlageliste für die Kategorie „Budgetdetails“"]
[null,"Kategorie","Kosten",null,"Nachschlagen der Budgetkategorie"]
[null,"Kinder",{"v":140,"d":"140 €"},null,"Kinder"]
[null,"Unterhaltung",{"v":358,"d":"358 €"},null,"Unterhaltung"]
[null,"Essen",{"v":1320,"d":"1,320 €"},null,"Essen"]
[null,"Geschenke und Spenden",{"v":125,"d":"125 €"},null,"Geschenke und Spenden"]
[null,"Wohnen",{"v":2702,"d":"2,702 €"},null,"Wohnen"]
[null,"Versicherungen",{"v":900,"d":"900 €"},null,"Versicherungen"]
[null,"Kredite",{"v":200,"d":"200 €"},null,"Kredite"]
[null,"Körperpflege",{"v":140,"d":"140 €"},null,"Körperpflege"]
[null,"Haustiere",{"v":100,"d":"100 €"},null,"Haustiere"]
[null,"Spareinlagen oder Investitionen",{"v":200,"d":"200 €"},null,"Spareinlagen oder Investitionen"]
[null,"Steuern",{"v":300,"d":"300 €"},null,"Steuern"]
[null,"Beförderung",{"v":1375,"d":"1,375 €"},null,"Beförderung"]
[null,"Gesamtergebnis",{"v":7860,"d":"7,860 €"}]